[Event "Early-Titled-Tuesday-Blitz-February-20-2024"]
[Site "Chess.com"]
[Date "2024.02.20"]
[Round "9"]
[White "ImportedItalianMaple"]
[Black "Hilary46"]
[Result "1/2-1/2"]
[WhiteElo "2536"]
[BlackElo "2663"]
[TimeControl "180+1"]
[EndTime "9:46:24 PST"]
[Termination "Game drawn by repetition"]

1. Nf3 {[%clk 0:03:00.9]} 1... d5 {[%clk 0:02:46.5]} 2. g3 {[%clk 0:03:01.1]}
2... Nf6 {[%clk 0:02:43.5]} 3. Bg2 {[%clk 0:03:01.5]} 3... c6 {[%clk 0:02:44.4]}
4. O-O {[%clk 0:03:01.7]} 4... Bg4 {[%clk 0:02:43.7]} 5. c4 {[%clk 0:03:02]}
5... e6 {[%clk 0:02:44]} 6. cxd5 {[%clk 0:03:01.7]} 6... exd5 {[%clk 0:02:43.9]}
7. h3 {[%clk 0:03:00.9]} 7... Bxf3 {[%clk 0:02:41.9]} 8. Bxf3 {[%clk 0:03:00.5]}
8... Be7 {[%clk 0:02:42.4]} 9. d3 {[%clk 0:03:00.2]} 9... O-O {[%clk 0:02:42.2]}
10. Nc3 {[%clk 0:03:00.4]} 10... Nbd7 {[%clk 0:02:36.2]} 11. e4 {[%clk
0:02:54.8]} 11... dxe4 {[%clk 0:02:35.6]} 12. dxe4 {[%clk 0:02:55.1]} 12... Ne5
{[%clk 0:02:34.9]} 13. Bg2 {[%clk 0:02:55.5]} 13... Qxd1 {[%clk 0:02:34.8]} 14.
Rxd1 {[%clk 0:02:55.5]} 14... Rfd8 {[%clk 0:02:35.5]} 15. Bg5 {[%clk 0:01:19.8]}
15... h6 {[%clk 0:02:31]} 16. Bxf6 {[%clk 0:01:19.1]} 16... Bxf6 {[%clk
0:02:31.9]} 17. Rxd8+ {[%clk 0:01:17.3]} 17... Rxd8 {[%clk 0:02:31.1]} 18. Rd1
{[%clk 0:01:18]} 18... Rxd1+ {[%clk 0:02:28.5]} 19. Nxd1 {[%clk 0:01:18.9]}
19... Nd3 {[%clk 0:02:28]} 20. b3 {[%clk 0:01:11.5]} 20... Bd4 {[%clk
0:02:27.6]} 21. a3 {[%clk 0:00:49.7]} 21... Nc1 {[%clk 0:02:24.1]} 22. b4 {[%clk
0:00:46.8]} 22... Nd3 {[%clk 0:02:02]} 23. Kf1 {[%clk 0:00:40]} 23... c5 {[%clk
0:01:40.4]} 24. Ke2 {[%clk 0:00:36]} 24... c4 {[%clk 0:01:37.8]} 25. f4 {[%clk
0:00:31.5]} 25... f6 {[%clk 0:01:26]} 26. e5 {[%clk 0:00:29.2]} 26... fxe5
{[%clk 0:01:26.2]} 27. Bd5+ {[%clk 0:00:23.7]} 27... Kf8 {[%clk 0:01:26.1]} 28.
Bxc4 {[%clk 0:00:24.3]} 28... Nb2 {[%clk 0:01:04.9]} 29. Nxb2 {[%clk 0:00:20.6]}
29... Bxb2 {[%clk 0:01:05.8]} 30. fxe5 {[%clk 0:00:20.9]} 30... Bxe5 {[%clk
0:01:03.3]} 31. g4 {[%clk 0:00:19.8]} 31... Ke7 {[%clk 0:01:03.4]} 32. Kd3
{[%clk 0:00:20.2]} 32... Kf6 {[%clk 0:01:03.7]} 33. Ke4 {[%clk 0:00:20.6]} 33...
Bc3 {[%clk 0:00:58.9]} 34. b5 {[%clk 0:00:20.5]} 34... Kg5 {[%clk 0:00:58.3]}
35. Kf3 {[%clk 0:00:20.4]} 35... Kh4 {[%clk 0:00:58]} 36. Kg2 {[%clk 0:00:20.8]}
36... Be5 {[%clk 0:00:56.4]} 37. a4 {[%clk 0:00:20.7]} 37... Bc7 {[%clk
0:00:56.7]} 38. Bd5 {[%clk 0:00:21.2]} 38... b6 {[%clk 0:00:56.9]} 39. Bc6
{[%clk 0:00:21.9]} 39... Bd6 {[%clk 0:00:56.8]} 40. Bd5 {[%clk 0:00:21.8]} 40...
Kg5 {[%clk 0:00:57]} 41. Kf3 {[%clk 0:00:21.8]} 41... Kh4 {[%clk 0:00:57.4]} 42.
Kg2 {[%clk 0:00:22.3]} 42... Kg5 {[%clk 0:00:57.1]} 43. Kf3 {[%clk 0:00:23]}
43... Kh4 {[%clk 0:00:57.7]} 44. Kg2 {[%clk 0:00:23.7]} 1/2-1/2

[Event "Early-Titled-Tuesday-Blitz-February-20-2024"]
[Site "Chess.com"]
[Date "2024.02.20"]
[Round "9"]
[White "Yushko_Olga"]
[Black "pedro_nascimento85"]
[Result "0-1"]
[WhiteElo "2183"]
[BlackElo "2133"]
[TimeControl "180+1"]
[EndTime "9:46:24 PST"]
[Termination "pedro_nascimento85 won by resignation"]

1. d4 {[%clk 0:02:59.9]} 1... d5 {[%clk 0:02:59.7]} 2. c4 {[%clk 0:03:00.7]}
2... e6 {[%clk 0:03:00]} 3. cxd5 {[%clk 0:03:01.3]} 3... exd5 {[%clk 0:02:59.5]}
4. Nc3 {[%clk 0:03:02.2]} 4... c6 {[%clk 0:02:57.8]} 5. Bg5 {[%clk 0:03:02.6]}
5... Qxg5 {[%clk 0:02:55.5]} 6. Nf3 {[%clk 0:03:01.4]} 6... Qd8 {[%clk
0:02:54.2]} 7. e3 {[%clk 0:03:01.4]} 7... Nf6 {[%clk 0:02:53.8]} 8. Bd3 {[%clk
0:03:01.8]} 8... Bd6 {[%clk 0:02:53.6]} 9. Rc1 {[%clk 0:03:02]} 9... O-O {[%clk
0:02:53.1]} 10. Bb1 {[%clk 0:03:01.3]} 10... Bg4 {[%clk 0:02:51.8]} 11. Qc2
{[%clk 0:03:00.8]} 11... Nbd7 {[%clk 0:02:48.4]} 12. h3 {[%clk 0:02:59.5]} 12...
Bh5 {[%clk 0:02:45.1]} 13. Qb3 {[%clk 0:02:56.5]} 13... Qb6 {[%clk 0:02:43.6]}
14. Qd1 {[%clk 0:02:51.4]} 14... Qxb2 {[%clk 0:02:25.7]} 15. O-O {[%clk
0:02:37.6]} 15... Qb6 {[%clk 0:02:17.2]} 16. Qa4 {[%clk 0:01:38.1]} 16... Bxf3
{[%clk 0:02:12.9]} 17. gxf3 {[%clk 0:01:37.5]} 17... Qd8 {[%clk 0:02:09.4]} 18.
Qc2 {[%clk 0:01:35.8]} 18... g6 {[%clk 0:02:06.9]} 19. f4 {[%clk 0:01:30]} 19...
Nh5 {[%clk 0:02:00.1]} 20. Qe2 {[%clk 0:01:29.4]} 20... Qh4 {[%clk 0:01:59.5]}
21. Qf3 {[%clk 0:01:26.3]} 21... Ng7 {[%clk 0:01:32.7]} 22. f5 {[%clk
0:01:22.3]} 22... Qh5 {[%clk 0:01:28.6]} 23. Qg2 {[%clk 0:01:17.4]} 23... Nxf5
{[%clk 0:01:25.8]} 24. f4 {[%clk 0:00:59.7]} 24... Nxe3 {[%clk 0:01:21.2]} 25.
Qh2 {[%clk 0:00:54.5]} 25... Nxf1 {[%clk 0:01:17.5]} 26. Rxf1 {[%clk 0:00:55.4]}
26... f5 {[%clk 0:01:12.9]} 27. Qg2 {[%clk 0:00:44.7]} 27... Nf6 {[%clk
0:01:06.8]} 28. Ne2 {[%clk 0:00:38.6]} 28... Ne4 {[%clk 0:00:53.1]} 29. Rf3
{[%clk 0:00:36.9]} 29... Rae8 {[%clk 0:00:44.9]} 30. Rg3 {[%clk 0:00:23.7]}
30... Nxg3 {[%clk 0:00:36.4]} 0-1

[Event "Early-Titled-Tuesday-Blitz-February-20-2024"]
[Site "Chess.com"]
[Date "2024.02.20"]
[Round "9"]
[White "a-z30"]
[Black "Cubitas"]
[Result "0-1"]
[WhiteElo "2481"]
[BlackElo "2643"]
[TimeControl "180+1"]
[EndTime "9:46:30 PST"]
[Termination "Cubitas won by checkmate"]

1. d3 {[%clk 0:02:38]} 1... e5 {[%clk 0:02:57.8]} 2. Nf3 {[%clk 0:02:29.3]} 2...
Nc6 {[%clk 0:02:56.7]} 3. g3 {[%clk 0:02:30]} 3... g6 {[%clk 0:02:56.5]} 4. Bg2
{[%clk 0:02:30.7]} 4... Bg7 {[%clk 0:02:57.1]} 5. O-O {[%clk 0:02:31.4]} 5...
Nge7 {[%clk 0:02:57.5]} 6. c4 {[%clk 0:02:32]} 6... d6 {[%clk 0:02:56.9]} 7. Nc3
{[%clk 0:02:32.6]} 7... O-O {[%clk 0:02:56.2]} 8. Rb1 {[%clk 0:02:33.2]} 8... f5
{[%clk 0:02:56.5]} 9. Nd2 {[%clk 0:02:28.3]} 9... g5 {[%clk 0:02:55.5]} 10. b4
{[%clk 0:02:25.8]} 10... f4 {[%clk 0:02:55.8]} 11. b5 {[%clk 0:02:21.4]} 11...
Nd4 {[%clk 0:02:55.4]} 12. e3 {[%clk 0:02:14.8]} 12... Ndf5 {[%clk 0:02:51.5]}
13. Nd5 {[%clk 0:02:04.1]} 13... Nxd5 {[%clk 0:02:46.4]} 14. Bxd5+ {[%clk
0:02:03.5]} 14... Kh8 {[%clk 0:02:46.9]} 15. exf4 {[%clk 0:01:53]} 15... gxf4
{[%clk 0:02:45.2]} 16. Bb2 {[%clk 0:01:32]} 16... a6 {[%clk 0:02:38.3]} 17. bxa6
{[%clk 0:01:12.7]} 17... Rxa6 {[%clk 0:02:37.6]} 18. a3 {[%clk 0:01:11.2]} 18...
c6 {[%clk 0:02:35.4]} 19. Be4 {[%clk 0:01:04.2]} 19... d5 {[%clk 0:02:31.5]} 20.
Bg2 {[%clk 0:01:03.4]} 20... Nd4 {[%clk 0:02:16.8]} 21. Bxd4 {[%clk 0:01:01.4]}
21... exd4 {[%clk 0:02:17.7]} 22. Re1 {[%clk 0:00:35.4]} 22... c5 {[%clk
0:02:11.3]} 23. Bxd5 {[%clk 0:00:24.6]} 23... fxg3 {[%clk 0:02:08.5]} 24. fxg3
{[%clk 0:00:22.7]} 24... Bh6 {[%clk 0:02:06.7]} 25. Ne4 {[%clk 0:00:13.5]} 25...
Qe8 {[%clk 0:01:44.1]} 26. Rf1 {[%clk 0:00:12.7]} 26... Be3+ {[%clk 0:01:40]}
27. Kg2 {[%clk 0:00:12.6]} 27... Rxa3 {[%clk 0:01:37.9]} 28. Rxf8+ {[%clk
0:00:11.6]} 28... Qxf8 {[%clk 0:01:38.8]} 29. Qh5 {[%clk 0:00:11]} 29... Ra2+
{[%clk 0:01:27.9]} 30. Kh1 {[%clk 0:00:11.1]} 30... Bf5 {[%clk 0:00:59.7]} 31.
Qf3 {[%clk 0:00:07.4]} 31... Rxh2+ {[%clk 0:00:47.1]} 32. Kxh2 {[%clk
0:00:06.5]} 32... Qh6+ {[%clk 0:00:47.1]} 33. Kg2 {[%clk 0:00:04.5]} 33... Qh3#
{[%clk 0:00:44.7]} 0-1

[Event "Early-Titled-Tuesday-Blitz-February-20-2024"]
[Site "Chess.com"]
[Date "2024.02.20"]
[Round "9"]
[White "Zq1"]
[Black "HanSchut"]
[Result "1-0"]
[WhiteElo "2521"]
[BlackElo "2301"]
[TimeControl "180+1"]
[EndTime "9:46:34 PST"]
[Termination "Zq1 won by resignation"]

1. d4 {[%clk 0:03:00.9]} 1... Nf6 {[%clk 0:02:58.3]} 2. c4 {[%clk 0:03:00.2]}
2... g6 {[%clk 0:02:58.3]} 3. Nc3 {[%clk 0:02:59.5]} 3... d5 {[%clk 0:02:58.9]}
4. Nf3 {[%clk 0:02:58.7]} 4... Bg7 {[%clk 0:02:58.9]} 5. cxd5 {[%clk 0:02:58.7]}
5... Nxd5 {[%clk 0:02:58.7]} 6. Bd2 {[%clk 0:02:59.3]} 6... Nb6 {[%clk
0:02:57.2]} 7. Bg5 {[%clk 0:02:58.2]} 7... O-O {[%clk 0:02:54.5]} 8. Rc1 {[%clk
0:02:56.8]} 8... Nc6 {[%clk 0:02:52.6]} 9. e3 {[%clk 0:02:56]} 9... a6 {[%clk
0:02:49.7]} 10. Be2 {[%clk 0:02:51.9]} 10... Qd6 {[%clk 0:02:39.8]} 11. Bf4
{[%clk 0:02:49.8]} 11... Qd7 {[%clk 0:02:25.9]} 12. O-O {[%clk 0:02:45.8]} 12...
Re8 {[%clk 0:02:25.8]} 13. d5 {[%clk 0:02:36.1]} 13... Bxc3 {[%clk 0:02:12.2]}
14. dxc6 {[%clk 0:02:35]} 14... Qxd1 {[%clk 0:02:08.2]} 15. Rfxd1 {[%clk
0:02:31.6]} 15... Bf6 {[%clk 0:01:50.2]} 16. cxb7 {[%clk 0:02:26.4]} 16... Bxb7
{[%clk 0:01:50.4]} 17. Rxc7 {[%clk 0:02:25.2]} 17... Bxf3 {[%clk 0:01:45.7]} 18.
Bxf3 {[%clk 0:02:22]} 18... Rac8 {[%clk 0:01:44.7]} 19. b3 {[%clk 0:02:18.6]}
19... a5 {[%clk 0:01:22.2]} 20. Rb7 {[%clk 0:01:58.2]} 20... Na8 {[%clk
0:01:19.1]} 21. h3 {[%clk 0:01:48.9]} 21... Rc2 {[%clk 0:01:00.4]} 22. a4 {[%clk
0:01:43.9]} 22... e5 {[%clk 0:00:55.6]} 23. Bh6 {[%clk 0:01:41.6]} 23... Bg7
{[%clk 0:00:43.6]} 24. Bd5 {[%clk 0:01:32.2]} 24... Rf8 {[%clk 0:00:32.5]} 25.
Bg5 {[%clk 0:01:30.1]} 25... Nc7 {[%clk 0:00:27.6]} 26. Bc4 {[%clk 0:01:28.8]}
26... Ne6 {[%clk 0:00:21.7]} 27. Bxe6 {[%clk 0:01:20.2]} 27... fxe6 {[%clk
0:00:22.6]} 28. Rdd7 {[%clk 0:01:14.5]} 28... Bf6 {[%clk 0:00:17]} 29. Bxf6
{[%clk 0:01:08.7]} 29... Rxf6 {[%clk 0:00:17.9]} 30. Rg7+ {[%clk 0:01:05.6]}
30... Kf8 {[%clk 0:00:17.8]} 31. Rxh7 {[%clk 0:01:02.4]} 31... Kg8 {[%clk
0:00:17.5]} 32. Rhg7+ {[%clk 0:00:50.4]} 32... Kf8 {[%clk 0:00:17.1]} 33. Rgc7
{[%clk 0:00:41.1]} 33... Rxc7 {[%clk 0:00:07.9]} 34. Rxc7 {[%clk 0:00:40.9]} 1-0

[Event "Early-Titled-Tuesday-Blitz-February-20-2024"]
[Site "Chess.com"]
[Date "2024.02.20"]
[Round "9"]
[White "ChEsper99"]
[Black "Barmen_EV"]
[Result "0-1"]
[WhiteElo "2228"]
[BlackElo "2517"]
[TimeControl "180+1"]
[EndTime "9:46:34 PST"]
[Termination "Barmen_EV won on time"]

1. e4 {[%clk 0:03:00.9]} 1... c5 {[%clk 0:02:59.6]} 2. Nf3 {[%clk 0:03:01]} 2...
Nc6 {[%clk 0:02:59.8]} 3. c3 {[%clk 0:02:56.1]} 3... Nf6 {[%clk 0:02:59.6]} 4.
e5 {[%clk 0:02:56.3]} 4... Nd5 {[%clk 0:02:59.5]} 5. d4 {[%clk 0:02:57.1]} 5...
cxd4 {[%clk 0:03:00.4]} 6. cxd4 {[%clk 0:02:57.9]} 6... d6 {[%clk 0:02:59.8]} 7.
exd6 {[%clk 0:02:57.1]} 7... Qxd6 {[%clk 0:02:58.5]} 8. Nc3 {[%clk 0:02:53.1]}
8... Bg4 {[%clk 0:02:54.8]} 9. Be2 {[%clk 0:02:48.8]} 9... e6 {[%clk 0:02:52.1]}
10. O-O {[%clk 0:02:48.9]} 10... Be7 {[%clk 0:02:49.1]} 11. h3 {[%clk
0:02:47.5]} 11... Bh5 {[%clk 0:02:45.3]} 12. Ne4 {[%clk 0:02:45.2]} 12... Qd7
{[%clk 0:02:42.3]} 13. Be3 {[%clk 0:02:44.1]} 13... O-O {[%clk 0:02:42.1]} 14.
Qd2 {[%clk 0:02:12.7]} 14... Nxe3 {[%clk 0:02:33.8]} 15. fxe3 {[%clk 0:02:07]}
15... Rad8 {[%clk 0:02:28.9]} 16. Rad1 {[%clk 0:01:40.4]} 16... Bxf3 {[%clk
0:02:13.3]} 17. Bxf3 {[%clk 0:01:39.8]} 17... Nb4 {[%clk 0:02:11.5]} 18. Nc3
{[%clk 0:01:29.9]} 18... e5 {[%clk 0:02:03.5]} 19. a3 {[%clk 0:01:20.1]} 19...
Na6 {[%clk 0:01:54.2]} 20. d5 {[%clk 0:01:03]} 20... b6 {[%clk 0:01:52.4]} 21.
e4 {[%clk 0:00:55.9]} 21... Nc5 {[%clk 0:01:51.6]} 22. b4 {[%clk 0:00:53.5]}
22... Nb7 {[%clk 0:01:51.3]} 23. Qe2 {[%clk 0:00:49.8]} 23... Nd6 {[%clk
0:01:50.5]} 24. Rc1 {[%clk 0:00:42.9]} 24... Bg5 {[%clk 0:01:45.4]} 25. Rc2
{[%clk 0:00:33.6]} 25... f5 {[%clk 0:01:45.3]} 26. exf5 {[%clk 0:00:32.7]} 26...
Qxf5 {[%clk 0:01:46.2]} 27. Bg4 {[%clk 0:00:27.8]} 27... Be3+ {[%clk 0:01:12.8]}
28. Qxe3 {[%clk 0:00:19.6]} 28... Qxf1+ {[%clk 0:01:12.8]} 29. Kh2 {[%clk
0:00:19.1]} 29... Qf4+ {[%clk 0:01:12.4]} 30. Qxf4 {[%clk 0:00:15.9]} 30... exf4
{[%clk 0:01:05.7]} 31. Ne2 {[%clk 0:00:09]} 31... g6 {[%clk 0:01:02.9]} 32. Nd4
{[%clk 0:00:08.5]} 32... h5 {[%clk 0:01:00.1]} 33. Bf3 {[%clk 0:00:03.9]} 33...
Rc8 {[%clk 0:00:59.6]} 34. Re2 {[%clk 0:00:02.4]} 34... Rfe8 {[%clk 0:00:59.8]}
35. Ne6 {[%clk 0:00:01.7]} 35... Nf5 {[%clk 0:00:59.4]} 36. Re5 {[%clk
0:00:01.9]} 36... Kf7 {[%clk 0:00:57.9]} 37. Be4 {[%clk 0:00:02]} 37... Kf6
{[%clk 0:00:58.2]} 0-1

[Event "Early-Titled-Tuesday-Blitz-February-20-2024"]
[Site "Chess.com"]
[Date "2024.02.20"]
[Round "9"]
[White "JaackCamel"]
[Black "Inepton_Fermion"]
[Result "0-1"]
[WhiteElo "2182"]
[BlackElo "2391"]
[TimeControl "180+1"]
[EndTime "9:46:42 PST"]
[Termination "Inepton_Fermion won by resignation"]

1. d4 {[%clk 0:03:00.9]} 1... g6 {[%clk 0:03:00.9]} 2. c4 {[%clk 0:02:59.5]}
2... Bg7 {[%clk 0:03:01.6]} 3. e4 {[%clk 0:02:58.9]} 3... d6 {[%clk 0:03:01.6]}
4. Nc3 {[%clk 0:02:58.2]} 4... c5 {[%clk 0:03:02.3]} 5. d5 {[%clk 0:02:56.2]}
5... Bxc3+ {[%clk 0:03:03.2]} 6. bxc3 {[%clk 0:02:55.8]} 6... e5 {[%clk
0:03:04.1]} 7. Be2 {[%clk 0:02:46.7]} 7... Nd7 {[%clk 0:03:02]} 8. g4 {[%clk
0:02:45.9]} 8... Qe7 {[%clk 0:03:00]} 9. h4 {[%clk 0:02:44.4]} 9... f5 {[%clk
0:02:39.3]} 10. gxf5 {[%clk 0:02:43.5]} 10... gxf5 {[%clk 0:02:39.8]} 11. exf5
{[%clk 0:02:43.1]} 11... Ndf6 {[%clk 0:02:27.2]} 12. Bh5+ {[%clk 0:02:42.2]}
12... Kd8 {[%clk 0:02:27.3]} 13. Nh3 {[%clk 0:02:17.9]} 13... Bxf5 {[%clk
0:02:23.6]} 14. Ng5 {[%clk 0:01:59.5]} 14... Kc7 {[%clk 0:02:06.1]} 15. Nf7
{[%clk 0:01:47.9]} 15... Nxh5 {[%clk 0:02:04.1]} 16. Nxh8 {[%clk 0:01:46.1]}
16... Nf4 {[%clk 0:02:00.9]} 17. Bxf4 {[%clk 0:01:34.2]} 17... exf4+ {[%clk
0:02:01.1]} 18. Qe2 {[%clk 0:01:33.8]} 18... Qg7 {[%clk 0:02:01.2]} 19. Kd2
{[%clk 0:01:10]} 19... Nf6 {[%clk 0:01:53.3]} 20. f3 {[%clk 0:01:03.2]} 20...
Re8 {[%clk 0:01:42.9]} 21. Qh2 {[%clk 0:01:01.9]} 21... Nh5 {[%clk 0:01:32]} 22.
Rhg1 {[%clk 0:00:57.2]} 22... Ng3 {[%clk 0:01:29.8]} 23. Rae1 {[%clk 0:00:52]}
23... Rxh8 {[%clk 0:01:26.3]} 24. h5 {[%clk 0:00:45.1]} 24... Qg5 {[%clk
0:01:15.3]} 25. Re2 {[%clk 0:00:21.1]} 25... h6 {[%clk 0:01:07.7]} 26. Ree1
{[%clk 0:00:18.8]} 26... Rf8 {[%clk 0:00:51.4]} 27. Rg2 {[%clk 0:00:17.7]} 27...
Rg8 {[%clk 0:00:38.7]} 28. Rgg1 {[%clk 0:00:17.3]} 28... Bh7 {[%clk 0:00:33.8]}
29. Rg2 {[%clk 0:00:14.9]} 29... Nf1+ {[%clk 0:00:28.7]} 30. Rxf1 {[%clk
0:00:12.3]} 30... Qxg2+ {[%clk 0:00:29.3]} 31. Qxg2 {[%clk 0:00:12.7]} 31...
Rxg2+ {[%clk 0:00:29.7]} 32. Kd1 {[%clk 0:00:12.1]} 32... Rxa2 {[%clk
0:00:29.4]} 33. Re1 {[%clk 0:00:08.9]} 33... Ra1+ {[%clk 0:00:28.3]} 0-1

[Event "Early-Titled-Tuesday-Blitz-February-20-2024"]
[Site "Chess.com"]
[Date "2024.02.20"]
[Round "9"]
[White "Anton_Demchenko"]
[Black "FREDERICKtheMATE"]
[Result "1-0"]
[WhiteElo "2903"]
[BlackElo "2682"]
[TimeControl "180+1"]
[EndTime "9:46:44 PST"]
[Termination "Anton_Demchenko won by checkmate"]

1. e4 {[%clk 0:03:00.9]} 1... c5 {[%clk 0:02:45.9]} 2. Nf3 {[%clk 0:03:00.3]}
2... Nc6 {[%clk 0:02:45.9]} 3. Bb5 {[%clk 0:03:00.1]} 3... g6 {[%clk 0:02:45.9]}
4. O-O {[%clk 0:02:58.9]} 4... Bg7 {[%clk 0:02:46.4]} 5. d3 {[%clk 0:02:59.7]}
5... e5 {[%clk 0:02:41.3]} 6. a3 {[%clk 0:02:59.9]} 6... Nge7 {[%clk 0:02:40.2]}
7. b4 {[%clk 0:03:00.2]} 7... d6 {[%clk 0:02:38.8]} 8. Bg5 {[%clk 0:02:59.9]}
8... f6 {[%clk 0:02:32.1]} 9. Be3 {[%clk 0:02:59.6]} 9... Qb6 {[%clk 0:02:27.7]}
10. Bc4 {[%clk 0:02:56.8]} 10... a6 {[%clk 0:02:20.8]} 11. Nbd2 {[%clk
0:02:48.7]} 11... f5 {[%clk 0:02:13.1]} 12. bxc5 {[%clk 0:02:31.8]} 12... dxc5
{[%clk 0:02:09.8]} 13. Ba2 {[%clk 0:02:23]} 13... Nd4 {[%clk 0:01:53.8]} 14.
exf5 {[%clk 0:02:11.2]} 14... Bxf5 {[%clk 0:01:50.4]} 15. Re1 {[%clk 0:01:53.6]}
15... Qc7 {[%clk 0:01:44.1]} 16. c3 {[%clk 0:01:28]} 16... Nxf3+ {[%clk
0:01:32]} 17. Qxf3 {[%clk 0:01:28.9]} 17... O-O-O {[%clk 0:01:30.3]} 18. Ne4
{[%clk 0:01:20.4]} 18... Rxd3 {[%clk 0:01:28.8]} 19. Nxc5 {[%clk 0:01:16.3]}
19... e4 {[%clk 0:01:04.5]} 20. Nxe4 {[%clk 0:01:06.5]} 20... Rf8 {[%clk
0:01:03.7]} 21. Bf4 {[%clk 0:00:48.5]} 21... Rxf3 {[%clk 0:00:50.5]} 22. Bxc7
{[%clk 0:00:48]} 22... Rd3 {[%clk 0:00:49.8]} 23. Bg3 {[%clk 0:00:40.7]} 23...
Bxe4 {[%clk 0:00:32.7]} 24. Rxe4 {[%clk 0:00:41.6]} 24... Nf5 {[%clk 0:00:31.9]}
25. Rc4+ {[%clk 0:00:30.5]} 25... Kd8 {[%clk 0:00:31.4]} 26. Bc7+ {[%clk
0:00:31]} 26... Kd7 {[%clk 0:00:30.6]} 27. Bb6 {[%clk 0:00:18.9]} 27... Rxc3
{[%clk 0:00:17.9]} 28. Rd1+ {[%clk 0:00:17.9]} 28... Ke8 {[%clk 0:00:17.9]} 29.
Re4+ {[%clk 0:00:16.1]} 29... Ne7 {[%clk 0:00:16]} 30. Rd8# {[%clk 0:00:16.5]}
1-0

[Event "Early-Titled-Tuesday-Blitz-February-20-2024"]
[Site "Chess.com"]
[Date "2024.02.20"]
[Round "9"]
[White "Sina_Movahed"]
[Black "AlexeiShirov"]
[Result "1/2-1/2"]
[WhiteElo "2960"]
[BlackElo "2847"]
[TimeControl "180+1"]
[EndTime "9:46:46 PST"]
[Termination "Game drawn by repetition"]

1. e4 {[%clk 0:03:00.9]} 1... e5 {[%clk 0:02:59.5]} 2. Nf3 {[%clk 0:03:00.9]}
2... Nc6 {[%clk 0:02:59.5]} 3. Bb5 {[%clk 0:03:00.5]} 3... a6 {[%clk 0:02:59.4]}
4. Ba4 {[%clk 0:03:00.6]} 4... Nf6 {[%clk 0:02:59.5]} 5. O-O {[%clk 0:03:01]}
5... b5 {[%clk 0:03:00]} 6. Bb3 {[%clk 0:03:00.7]} 6... Bc5 {[%clk 0:03:00.6]}
7. c3 {[%clk 0:03:01.2]} 7... d6 {[%clk 0:03:00.4]} 8. a4 {[%clk 0:03:01.8]}
8... Rb8 {[%clk 0:02:59.5]} 9. d4 {[%clk 0:03:02.2]} 9... Bb6 {[%clk 0:02:59.2]}
10. a5 {[%clk 0:03:02.9]} 10... Ba7 {[%clk 0:02:58.2]} 11. h3 {[%clk 0:03:03.4]}
11... Bb7 {[%clk 0:02:57]} 12. Be3 {[%clk 0:03:01.6]} 12... Nxe4 {[%clk
0:02:52.5]} 13. Re1 {[%clk 0:02:38.1]} 13... exd4 {[%clk 0:02:44.8]} 14. cxd4
{[%clk 0:02:39]} 14... Ne7 {[%clk 0:02:33.5]} 15. Nbd2 {[%clk 0:02:17.6]} 15...
d5 {[%clk 0:02:32.4]} 16. Rc1 {[%clk 0:02:10.4]} 16... O-O {[%clk 0:02:29.5]}
17. Ne5 {[%clk 0:02:11]} 17... Nd6 {[%clk 0:02:12]} 18. Bc2 {[%clk 0:01:46.1]}
18... Nc4 {[%clk 0:02:06]} 19. Qh5 {[%clk 0:01:12.9]} 19... Ng6 {[%clk
0:02:02.6]} 20. Ndf3 {[%clk 0:01:08.2]} 20... Ncxe5 {[%clk 0:01:45.9]} 21. Nxe5
{[%clk 0:01:09.1]} 21... Qd6 {[%clk 0:01:34.3]} 22. Rcd1 {[%clk 0:00:34.3]}
22... Rbe8 {[%clk 0:01:33.7]} 23. Bf4 {[%clk 0:00:34.9]} 23... Qb4 {[%clk
0:01:23.5]} 24. Re3 {[%clk 0:00:20.1]} 24... Bxd4 {[%clk 0:01:18.8]} 25. Nd3
{[%clk 0:00:17.8]} 25... Nxf4 {[%clk 0:01:13.8]} 26. Nxf4 {[%clk 0:00:16.6]}
26... g6 {[%clk 0:01:12.4]} 27. Nxg6 {[%clk 0:00:16.5]} 27... fxg6 {[%clk
0:01:05.6]} 28. Bxg6 {[%clk 0:00:17.4]} 28... Re7 {[%clk 0:01:02]} 29. Rxd4
{[%clk 0:00:15.3]} 29... Qxd4 {[%clk 0:00:59.4]} 30. Rxe7 {[%clk 0:00:15.4]}
30... Qxf2+ {[%clk 0:00:58.8]} 31. Kh2 {[%clk 0:00:15.7]} 31... Qf4+ {[%clk
0:00:57.9]} 32. Kh1 {[%clk 0:00:16.2]} 32... Qf1+ {[%clk 0:00:42.5]} 33. Kh2
{[%clk 0:00:16.6]} 33... Qf4+ {[%clk 0:00:42.5]} 34. Kg1 {[%clk 0:00:16.2]}
34... Qf1+ {[%clk 0:00:42.3]} 35. Kh2 {[%clk 0:00:13.1]} 35... Qf4+ {[%clk
0:00:42.2]} 1/2-1/2

[Event "Early-Titled-Tuesday-Blitz-February-20-2024"]
[Site "Chess.com"]
[Date "2024.02.20"]
[Round "9"]
[White "MaxLeto"]
[Black "poummba"]
[Result "0-1"]
[WhiteElo "2526"]
[BlackElo "2390"]
[TimeControl "180+1"]
[EndTime "9:46:46 PST"]
[Termination "poummba won by checkmate"]

1. e4 {[%clk 0:03:00.9]} 1... c5 {[%clk 0:02:53.8]} 2. Nf3 {[%clk 0:03:01.3]}
2... d6 {[%clk 0:02:53.7]} 3. d4 {[%clk 0:03:01.6]} 3... cxd4 {[%clk 0:02:54.6]}
4. Nxd4 {[%clk 0:03:02.4]} 4... Nf6 {[%clk 0:02:55]} 5. Nc3 {[%clk 0:03:02.9]}
5... a6 {[%clk 0:02:55.5]} 6. h3 {[%clk 0:03:02.4]} 6... e5 {[%clk 0:02:54.4]}
7. Nde2 {[%clk 0:03:01.8]} 7... h5 {[%clk 0:02:51.3]} 8. Bg5 {[%clk 0:03:01.7]}
8... Be6 {[%clk 0:02:49.3]} 9. Bxf6 {[%clk 0:02:49.7]} 9... Qxf6 {[%clk
0:02:42.1]} 10. Nd5 {[%clk 0:02:50.6]} 10... Bxd5 {[%clk 0:02:41.7]} 11. Qxd5
{[%clk 0:02:50.3]} 11... Nc6 {[%clk 0:02:41]} 12. Nc3 {[%clk 0:02:46.7]} 12...
Be7 {[%clk 0:02:09.1]} 13. Be2 {[%clk 0:02:22.8]} 13... O-O {[%clk 0:02:05.3]}
14. Bxh5 {[%clk 0:02:18.2]} 14... Qg5 {[%clk 0:01:56.9]} 15. Bf3 {[%clk
0:02:16.5]} 15... Nd4 {[%clk 0:01:55.5]} 16. Kd1 {[%clk 0:01:43.4]} 16... Rfc8
{[%clk 0:01:38.3]} 17. Qxb7 {[%clk 0:01:17.1]} 17... Rab8 {[%clk 0:01:37.4]} 18.
Qxa6 {[%clk 0:01:17.1]} 18... Rc6 {[%clk 0:01:29.3]} 19. h4 {[%clk 0:00:30.1]}
19... Qh6 {[%clk 0:00:51.3]} 20. Qa3 {[%clk 0:00:27.1]} 20... Bf8 {[%clk
0:00:39]} 21. Rb1 {[%clk 0:00:04.1]} 21... d5 {[%clk 0:00:39.1]} 22. Qa5 {[%clk
0:00:02]} 22... Rc5 {[%clk 0:00:37.9]} 23. Qa7 {[%clk 0:00:01.8]} 23... Rb6
{[%clk 0:00:30.8]} 24. Nxd5 {[%clk 0:00:02]} 24... Ra6 {[%clk 0:00:28.2]} 25.
Qb8 {[%clk 0:00:01.7]} 25... Rxc2 {[%clk 0:00:25.5]} 26. Ne3 {[%clk 0:00:02.2]}
26... Rxf2 {[%clk 0:00:22]} 27. Ke1 {[%clk 0:00:01.7]} 27... Qxe3+ {[%clk
0:00:22.2]} 28. Kd1 {[%clk 0:00:01]} 28... Qd2# {[%clk 0:00:22.2]} 0-1